bitfinex/quotes_SOLUSD_20250508
["timestamp","ask_amount","ask_price","bid_price","bid_amount"]
[1746676671963,51.16129259,151.03,150.95,6.62447346]
[1746676672277,32.62142217,151.03,150.94,26.0]
[1746676672459,32.62142217,151.03,150.98,18.53987042]
[1746676672663,18.53987042,151.02,150.98,18.53987042]
[1746676672973,18.53987042,151.02,150.94,26.0]
[1746676673173,6.62167207,151.02,150.98,18.53987042]
[1746676673380,6.62032439,151.05,150.95,24.94241043]
[1746676673554,6.62032439,151.05,151.01,18.53987042]
[1746676673971,6.61992676,151.06,150.98,26.0]
[1746676674382,18.53987042,151.04,150.95,24.94241043]
[1746676674554,25.26957562,151.06,151.0,18.53987042]
[1746676674753,18.53987042,151.04,150.96,26.0]
[1746676674954,25.26957562,151.06,150.96,26.0]
[1746676675153,25.26957562,151.06,150.96,32.624261]
[1746676675354,25.26957562,151.06,151.0,18.53987042]
[1746676675653,6.61992676,151.06,151.0,18.53987042]
[1746676675848,6.61992676,151.06,150.96,32.624261]
[1746676676156,25.02174794,151.05,150.96,32.624261]
[1746676676362,43.56161836,151.05,150.96,32.624261]
[1746676676565,25.02174794,151.05,150.96,32.624261]
[1746676676765,25.02174794,151.05,150.97,18.53987042]
[1746676676973,25.02174794,151.05,150.96,26.0]
[1746676677180,6.62076271,151.04,150.96,26.0]
[1746676677388,6.62076271,151.04,150.96,32.62394051]
[1746676677749,25.02174794,151.05,150.96,32.62394051]
[1746676677982,25.02174794,151.05,151.01,18.53987042]
[1746676678165,25.02174794,151.04,150.96,32.62394051]
[1746676679588,25.02174794,151.04,151.02,18.53987042]
[1746676679799,25.02174794,151.04,150.96,32.62394051]
[1746676680701,43.56161836,151.04,150.99,18.53987042]
[1746676680911,18.53987042,151.0,150.92,1.5936]
[1746676681075,44.79181043,151.05,150.92,1.5936]
[1746676681400,0.14216157,151.03,150.94,26.0]
[1746676681583,18.64964886,151.03,150.94,26.0]
[1746676681782,18.64964886,151.03,150.93,6.62558802]
[1746676681980,18.53987042,150.98,150.92,1.5936]
[1746676682208,18.53987042,150.97,150.91,6.5742]
[1746676682499,18.64964886,150.99,150.89,6.62734442]
[1746676682686,18.64964886,150.99,150.92,18.53987042]
[1746676682883,18.53987042,150.99,150.89,32.62734442]
[1746676683187,1.642,151.0,150.92,26.0]
[1746676683389,1.642,151.0,150.96,18.53987042]
[1746676683596,12.83879145,151.02,150.98,18.53987042]
[1746676683771,18.53987042,151.01,150.92,26.0]
[1746676683972,12.83879145,151.02,150.92,26.0]
[1746676684192,18.53987042,151.01,150.92,26.0]
[1746676684582,6.217,151.02,150.92,26.0]
[1746676684787,18.53987042,151.01,150.92,26.0]
[1746676684991,6.217,151.02,150.92,26.0]
[1746676685209,18.53987042,151.0,150.93,6.62558802]
[1746676685382,6.217,151.02,150.93,6.62558802]
[1746676685575,18.53987042,150.98,150.92,32.62598211]
[1746676685783,18.64964886,151.01,150.92,32.62598211]
[1746676685998,18.53987042,150.99,150.92,32.62598211]
[1746676686302,18.53987042,150.98,150.92,32.62598211]
[1746676686506,18.53987042,150.98,150.94,18.53987042]
[1746676686702,25.02174794,150.97,150.9,6.62648807]
[1746676686881,43.56161836,150.96,150.88,1.6186]
[1746676687079,18.53987042,150.95,150.9,26.0]
[1746676687302,25.02174794,150.96,150.88,20.26824886]
[1746676687504,25.02174794,150.99,150.89,25.41910944]
[1746676687706,25.02174794,150.99,150.92,26.0]
[1746676688002,25.02174794,150.99,150.89,6.62729901]
[1746676688182,25.02174794,150.99,150.92,18.53987042]
[1746676688387,18.53987042,150.97,150.92,18.53987042]
[1746676688602,25.02174794,150.99,150.93,18.53987042]
[1746676688807,18.53987042,150.97,150.9,25.27655409]
[1746676689107,18.53987042,150.96,150.9,6.62690523]
[1746676689396,31.64484168,150.99,150.92,18.53987042]
[1746676689803,18.53987042,150.97,150.92,18.53987042]
[1746676690190,31.64475268,150.99,150.93,18.53987042]
[1746676690393,18.53987042,150.97,150.91,6.62634911]
[1746676690609,25.02174794,150.98,150.92,18.53987042]
[1746676690907,25.02174794,150.98,150.93,18.53987042]
[1746676691089,18.53987042,150.97,150.91,6.62634911]
[1746676691403,31.64542197,150.98,150.9,6.62690523]
[1746676691594,18.53987042,150.97,150.9,6.62690523]
[1746676692003,31.64542197,150.98,150.9,6.62690523]
[1746676692202,31.64542197,150.98,150.93,18.53987042]
[1746676692403,18.53987042,150.97,150.93,18.53987042]
[1746676692595,31.64542197,150.98,150.93,18.53987042]
[1746676692798,18.53987042,150.96,150.9,6.62690523]
[1746676692999,18.53987042,150.94,150.89,26.0]
[1746676693206,18.53987042,150.94,150.9,18.53987042]
[1746676693500,43.56161836,150.95,150.9,18.53987042]
[1746676693686,25.02174794,150.95,150.88,27.6186]
[1746676694105,25.02174794,150.95,150.91,18.53987042]
[1746676694418,43.56161836,150.95,150.89,6.62693016]
[1746676694782,25.02174794,150.95,150.94,18.53987042]
[1746676694985,25.02174794,150.95,150.94,26.0]
[1746676695280,26.81865431,151.0,150.94,44.53987042]
[1746676695484,8.27878389,151.0,150.94,26.0]
[1746676695898,8.27878389,151.0,150.89,0.14216157]
[1746676696103,18.53987042,150.98,150.91,26.0]
[1746676696410,18.53987042,150.97,150.92,18.53987042]
[1746676696709,18.53987042,150.96,150.91,44.53987042]
[1746676697008,18.53987042,150.96,150.92,18.53987042]
[1746676697207,25.02174794,150.98,150.91,26.0]
[1746676697384,43.56161836,150.98,150.93,18.53987042]
[1746676697584,25.02174794,150.98,150.91,26.0]
[1746676697812,6.62383254,150.97,150.93,18.53987042]
[1746676698016,6.62383254,150.97,150.91,26.0]
[1746676698486,6.62383254,150.97,150.93,18.53987042]
[1746676698909,6.62383254,150.97,150.91,26.0]
[1746676699107,25.16370296,150.97,150.91,26.0]
[1746676699412,25.16370296,150.97,150.92,18.53987042]
[1746676699601,25.16370296,150.97,150.91,26.0]
[1746676699800,6.62383254,150.97,150.92,18.53987042]
[1746676699992,25.16370296,150.97,150.92,18.53987042]
[1746676700193,25.16370296,150.97,150.91,26.0]
[1746676700412,25.16370296,150.97,150.92,18.53987042]
[1746676701319,6.62383254,150.97,150.93,18.53987042]
[1746676701518,25.02174794,150.98,150.96,18.53987042]
[1746676701716,31.64521702,150.98,150.94,18.53987042]
[1746676702088,25.02174794,150.98,150.95,18.53987042]
[1746676702283,25.02174794,150.98,150.96,18.53987042]
[1746676702719,25.02174794,150.98,150.92,18.64964886]
[1746676703013,25.02174794,150.98,150.96,18.53987042]
[1746676703195,31.64390681,151.01,150.97,18.53987042]
[1746676703391,18.53987042,151.0,150.93,6.62558802]
[1746676703601,18.53987042,151.0,150.95,18.53987042]
[1746676703798,31.64390681,151.01,150.95,18.53987042]
[1746676703998,18.53987042,151.0,150.93,6.62558802]
[1746676704304,18.53987042,151.0,150.96,18.53987042]
[1746676704826,25.16253073,151.0,150.95,18.53987042]
[1746676705015,18.53987042,150.99,150.95,18.53987042]
[1746676705210,18.53987042,150.99,150.94,6.62478305]
[1746676705411,18.53987042,150.98,150.93,44.53987042]
[1746676706037,6.62266031,151.0,150.93,26.0]
[1746676706321,6.62266031,151.0,150.94,18.53987042]
[1746676706497,18.53987042,150.99,150.94,18.53987042]
[1746676706817,6.62266031,151.0,150.96,18.53987042]
[1746676707023,25.02174794,151.01,150.97,18.53987042]
[1746676707724,31.64392981,151.01,150.93,32.62542974]
[1746676708227,25.02174794,151.01,150.98,18.53987042]
[1746676708731,25.02174794,151.01,150.99,18.53987042]
[1746676710128,26.6891353,151.04,151.0,18.53987042]
[1746676710432,1.5284,151.04,151.0,18.53987042]
[1746676710640,50.18202906,151.05,151.01,18.53987042]
[1746676711032,25.02174794,151.05,151.02,18.53987042]
[1746676711737,25.02174794,151.05,151.01,18.53987042]
[1746676711965,25.02174794,151.05,151.02,18.53987042]
[1746676712237,25.02174794,151.05,151.03,18.53987042]
[1746676712744,25.02174794,151.05,151.02,18.53987042]
[1746676712928,25.02174794,151.05,151.03,18.53987042]
[1746676713840,25.02174794,151.05,151.0,26.0]
[1746676714056,25.02174794,151.05,151.02,18.53987042]
[1746676714356,25.02174794,151.05,151.03,18.53987042]
[1746676714642,25.02174794,151.05,151.04,18.53987042]
[1746676714814,6.61905602,151.08,151.04,18.53987042]
[1746676715020,6.61905602,151.08,151.03,6.62119529]
[1746676715246,6.61905602,151.08,151.04,18.53987042]
[1746676715546,25.15892644,151.08,151.03,18.53987042]
[1746676716038,25.15892644,151.08,151.04,18.53987042]
[1746676716219,25.15892644,151.08,151.01,6.62196702]
[1746676716420,25.15892644,151.08,151.01,25.27161588]
[1746676716826,6.61905602,151.08,151.05,18.53987042]
[1746676717027,50.1803017,151.09,151.05,18.53987042]
[1746676717234,31.64043128,151.09,151.05,18.53987042]
[1746676718458,31.64043128,151.09,151.06,18.53987042]
[1746676718663,25.02174794,151.09,151.06,18.53987042]
[1746676719649,31.64036246,151.09,151.06,18.53987042]
[1746676721841,25.02174794,151.09,151.07,18.53987042]
[1746676722065,25.02174794,151.09,151.04,6.62064115]
[1746676722256,25.02174794,151.09,151.06,18.53987042]
[1746676723344,31.64050643,151.09,151.05,18.53987042]
[1746676723741,50.18037685,151.09,151.03,26.0]
[1746676724045,50.18037685,151.09,151.05,18.53987042]
[1746676724366,31.64050643,151.09,151.05,18.53987042]
[1746676725155,25.02174794,151.09,151.06,18.53987042]
[1746676725360,25.02174794,151.09,151.07,18.53987042]
[1746676725668,31.64034073,151.09,151.06,18.53987042]
[1746676726563,50.18021115,151.09,151.05,18.53987042]
[1746676726760,18.53987042,151.08,151.04,18.53987042]
[1746676727164,18.53987042,151.08,151.03,26.0]
[1746676727368,18.53987042,151.08,151.04,18.53987042]
[1746676727570,18.53987042,151.07,151.03,44.53987042]
[1746676727772,18.53987042,151.08,151.03,26.0]
[1746676728070,50.18021115,151.09,151.04,18.53987042]
[1746676728268,31.64034073,151.09,151.04,18.53987042]
[1746676728445,31.64034073,151.09,151.05,18.53987042]
[1746676728646,25.02174794,151.09,151.06,18.53987042]
[1746676728858,31.64037607,151.09,151.04,6.62068479]
[1746676729164,18.53987042,151.08,151.03,26.0]
[1746676729372,18.53987042,151.08,151.04,18.53987042]
[1746676729548,25.15849855,151.09,151.04,18.53987042]
[1746676729973,25.15849855,151.09,151.03,26.0]
[1746676730171,25.15849855,151.09,151.02,6.62160485]
[1746676730371,25.15849855,151.09,151.04,18.53987042]
[1746676730571,18.53987042,151.08,151.0,6.62210367]
[1746676730760,18.53987042,151.08,151.04,18.53987042]
[1746676731568,6.61944793,151.07,151.04,18.53987042]
[1746676731870,6.61944793,151.07,150.98,6.62330345]
[1746676732045,11.58021057,151.05,151.0,11.58021057]
[1746676732248,1.5977,151.06,150.98,32.62330345]
[1746676732459,1.5977,151.06,151.01,11.58021057]
[1746676732661,11.58021057,151.05,150.98,6.62330345]
[1746676732974,6.62032439,151.05,151.01,11.58021057]
[1746676733381,8.21771362,151.06,151.02,11.58021057]
[1746676733683,6.61900979,151.08,151.03,11.58021057]
[1746676733854,6.61900979,151.08,151.03,18.52709043]
[1746676733859,25.14610022,151.08,151.03,18.52709043]
[1746676734287,25.14610022,151.08,151.0,20.0]
[1746676734588,25.14610022,151.08,151.03,18.52709043]
[1746676734787,18.52709043,151.07,151.03,18.52709043]
[1746676735090,25.14610022,151.08,151.04,18.52709043]
[1746676736117,6.61900979,151.08,151.04,18.52709043]
[1746676736259,6.61900979,151.08,151.05,18.52709043]
[1746676736460,6.61900979,151.08,151.04,18.52709043]
[1746676736773,6.61857171,151.09,151.05,18.52709043]
[1746676736984,25.14566214,151.09,151.05,18.52709043]
[1746676737172,6.61857171,151.09,151.05,18.52709043]
[1746676737575,6.61857171,151.09,151.07,18.52709043]
[1746676737772,33.17456171,151.1,151.07,18.52709043]
[1746676737976,33.17456171,151.1,151.06,18.52709043]
[1746676738465,26.55634794,151.1,151.07,18.52709043]
[1746676739190,25.02174794,151.1,151.09,18.52709043]
[1746676739384,25.02174794,151.1,151.05,6.6202886]
[1746676739561,25.02174794,151.1,151.08,18.52709043]
[1746676740191,25.02174794,151.1,151.09,18.52709043]
[1746676741090,31.64017,151.1,151.07,18.52709043]
[1746676741577,31.64017,151.1,151.05,26.0]
[1746676741762,31.64017,151.1,151.07,18.52709043]
[1746676742383,31.64017,151.1,151.05,26.0]
[1746676742586,31.64017,151.1,151.07,18.52709043]
[1746676742966,48.18550421,151.1,151.01,7.9493]
[1746676743190,43.54883837,151.09,151.04,26.0]
[1746676743488,43.54883837,151.09,151.05,18.52709043]
[1746676743677,18.52709043,151.06,151.0,20.0]
[1746676743876,25.02174794,151.05,151.01,18.52709043]
[1746676744191,25.02174794,151.05,151.02,18.52709043]
[1746676744370,31.64240184,151.05,151.02,18.52709043]
[1746676744567,25.02174794,151.05,151.0,20.0]
[1746676744783,25.02174794,151.09,151.0,20.0]
[1746676744989,18.52709043,151.07,151.0,20.0]
[1746676745167,18.52709043,151.07,151.03,18.52709043]
[1746676745375,18.52709043,151.07,151.0,20.0]
[1746676745376,18.52709043,151.06,151.0,20.0]
[1746676745592,25.02174794,151.09,151.03,18.52709043]
[1746676745767,25.02174794,151.09,151.0,26.62251114]
[1746676745967,18.52709043,151.07,151.02,18.52709043]
[1746676746495,18.52709043,151.07,151.0,226.62251114]
[1746676746790,6.61927264,151.08,151.03,18.52709043]
[1746676746993,25.14636307,151.08,151.03,18.52709043]
[1746676747378,6.61927264,151.08,151.03,18.52709043]
[1746676747585,25.14636307,151.08,151.03,18.52709043]
[1746676748091,6.61927264,151.08,151.01,6.62181638]
[1746676748476,18.52709043,151.07,151.02,18.52709043]
[1746676748680,6.61927264,151.08,151.02,18.52709043]
[1746676748878,18.52709043,151.07,151.02,18.52709043]
[1746676749192,18.52709043,151.05,151.0,245.14958927]
[1746676749383,1.6343,151.06,151.0,245.14958927]
[1746676749576,1.6343,151.06,151.01,18.52709043]
[1746676749781,18.52709043,151.05,151.01,18.52709043]
[1746676750205,18.52709043,151.05,151.01,25.14913122]
[1746676750407,43.54883837,151.04,151.0,220.0]
[1746676750703,18.52709043,151.03,151.0,220.0]
[1746676751003,25.02174794,151.04,151.0,220.0]
[1746676751192,18.52709043,151.03,151.0,220.0]
[1746676751579,43.54883837,151.04,151.0,220.0]
[1746676751994,18.52709043,151.02,151.0,220.0]
[1746676752200,31.64257158,151.04,151.0,220.0]
[1746676752505,18.52709043,151.03,151.0,220.0]
[1746676753604,31.64257158,151.04,151.0,220.0]
[1746676753912,50.16966201,151.04,151.0,220.0]
[1746676754403,25.02174794,151.04,151.0,220.0]
[1746676754603,50.169658,151.04,151.0,220.0]
[1746676754806,31.64256757,151.04,151.0,220.0]
[1746676755013,50.169658,151.04,151.0,220.0]
[1746676755203,31.64256757,151.04,151.0,220.0]
[1746676755408,50.169658,151.04,151.0,220.0]
[1746676755611,6.6181865,151.1,151.03,18.52709043]
[1746676755796,1.5217,151.11,151.04,6.62047454]
[1746676756113,1.5217,151.11,151.03,32.62108947]
[1746676756623,1.5217,151.11,151.08,18.52709043]
[1746676756800,8.13803217,151.15,151.09,18.52709043]
[1746676757003,8.13803217,151.15,151.03,32.62108947]
[1746676757004,1.5217,151.15,151.1,18.52709043]
[1746676757206,18.52709043,151.14,151.07,26.0]
[1746676757399,8.13777855,151.15,151.07,26.0]
[1746676757608,18.52709043,151.14,151.07,26.0]
[1746676757805,18.52709043,151.14,151.09,18.52709043]
[1746676758005,26.66486898,151.15,151.1,18.52709043]
[1746676758317,18.52709043,151.14,151.09,18.52709043]
[1746676758518,18.52709043,151.14,151.07,26.0]
[1746676758821,18.52709043,151.14,151.09,18.52709043]
[1746676759120,18.52709043,151.14,151.06,26.0]
[1746676759319,18.52709043,151.13,151.06,26.0]
[1746676759492,8.13777855,151.15,151.06,32.61960408]
[1746676759695,8.13777855,151.15,151.09,18.52709043]
[1746676759921,18.52709043,151.14,151.07,26.0]
[1746676760497,18.52709043,151.14,151.09,18.52709043]
[1746676760718,6.61645139,151.14,151.09,18.52709043]
[1746676760919,18.52709043,151.13,151.07,26.0]
[1746676761094,43.54883837,151.12,151.05,26.0]
[1746676761295,25.02174794,151.12,151.06,18.52709043]
[1746676761491,43.54883837,151.11,151.06,18.52709043]
[1746676761797,25.02174794,151.1,151.05,26.0]
[1746676761993,25.02174794,151.1,151.07,18.52709043]
[1746676762301,25.02174794,151.1,151.06,18.52709043]
[1746676762505,25.02174794,151.1,151.05,26.0]
[1746676762707,43.54883837,151.1,151.05,18.52709043]
[1746676762905,25.02174794,151.1,151.05,18.52709043]
[1746676763100,18.52709043,151.09,151.01,1.5961]
[1746676763419,25.02174794,151.08,151.03,44.52709043]
[1746676763614,43.54883837,151.08,151.03,44.52709043]
[1746676764124,43.54883837,151.08,151.04,18.52709043]
[1746676764632,25.02174794,151.08,151.03,26.0]
[1746676764815,43.54883837,151.08,151.04,18.52709043]
[1746676765014,25.02174794,151.08,151.04,18.52709043]
[1746676765222,50.16797872,151.08,151.03,26.0]
[1746676765525,50.16797872,151.08,151.03,44.52709043]
[1746676765703,50.16797872,151.08,151.04,18.52709043]
[1746676766029,50.16797872,151.08,151.03,18.52709043]
[1746676766230,25.02174794,151.08,151.04,18.52709043]
[1746676766626,25.02174794,151.08,151.05,18.52709043]
[1746676766813,25.02174794,151.08,151.06,18.52709043]
[1746676768224,25.02174794,151.08,151.03,6.62120108]
[1746676768436,25.02174794,151.08,151.05,18.52709043]
[1746676769428,50.16785458,151.08,151.04,18.52709043]
[1746676769933,50.16785458,151.08,151.01,26.0]
[1746676770126,25.02174794,151.07,151.04,18.52709043]
[1746676770440,25.02174794,151.06,151.01,26.0]
[1746676770734,25.02174794,151.06,151.02,18.52709043]
[1746676770915,18.52709043,151.05,151.01,18.52709043]
[1746676771239,43.54883837,151.06,151.01,18.52709043]
[1746676771816,25.02174794,151.05,151.01,18.52709043]
[1746676772231,25.02174794,151.05,151.02,18.52709043]
[1746676772453,31.64211509,151.05,151.03,18.52709043]
[1746676772744,31.64211509,151.05,151.0,220.0]
[1746676773034,66.7200165,151.05,151.0,238.52709043]
[1746676773217,31.64211509,151.05,151.01,18.52709043]
[1746676774132,50.16920552,151.05,151.01,18.52709043]
[1746676774435,25.02174794,151.04,151.01,18.52709043]
[1746676775235,25.02174794,151.04,151.03,18.52709043]
[1746676775729,25.02174794,151.04,151.02,18.52709043]
[1746676775914,25.02174794,151.04,151.03,18.52709043]
[1746676776114,25.02174794,151.04,151.0,226.622318]
[1746676776314,25.02174794,151.04,151.03,18.52709043]
[1746676776524,25.02174794,151.04,151.0,226.622318]
[1746676776714,31.64254605,151.04,151.0,220.0]
[1746676776915,25.02174794,151.04,151.0,220.0]
[1746676777116,50.16980128,151.04,151.0,220.0]
[1746676777335,50.16980128,151.04,151.0,238.52709043]
[1746676777537,31.64271085,151.04,151.0,238.52709043]
[1746676777843,31.64271085,151.04,151.0,220.0]
[1746676778015,50.16980128,151.04,151.0,238.52709043]
[1746676778218,31.64271085,151.04,151.0,220.0]
[1746676778413,25.02174794,151.04,151.01,18.52709043]
[1746676778620,25.02174794,151.04,151.02,18.52709043]
[1746676778820,31.64258201,151.04,151.0,220.0]
[1746676779030,50.16967244,151.04,151.0,220.0]
[1746676779326,31.64258201,151.04,151.0,238.52709043]
[1746676779541,31.64258201,151.04,151.01,18.52709043]
[1746676780234,25.02174794,151.04,151.02,18.52709043]
[1746676780533,31.64254565,151.04,151.01,18.52709043]
[1746676780740,31.64254565,151.04,151.0,220.0]
[1746676780926,31.64254565,151.04,151.01,18.52709043]
[1746676781321,25.02174794,151.04,151.02,18.52709043]
[1746676781722,25.02174794,151.04,151.0,226.62249458]
[1746676781915,25.02174794,151.04,151.02,18.52709043]
[1746676783038,25.02174794,151.04,151.0,220.0]
[1746676783234,25.02174794,151.04,151.03,18.52709043]
[1746676784039,25.02174794,151.04,151.02,18.52709043]
[1746676784418,25.02174794,151.04,151.03,18.52709043]
[1746676784937,31.64262745,151.04,151.0,220.0]
[1746676785533,31.64262745,151.04,151.02,18.52709043]
[1746676785841,31.64262745,151.04,151.0,220.0]
[1746676786041,31.64262745,151.04,151.0,238.52709043]
[1746676786942,31.64262745,151.04,151.01,18.52709043]
[1746676787122,25.02174794,151.04,151.02,18.52709043]
[1746676787440,31.64255006,151.04,151.02,18.52709043]
[1746676788045,31.64255006,151.04,151.0,220.0]
[1746676788238,31.64255006,151.04,151.01,18.52709043]
[1746676790438,31.64255006,151.04,151.02,18.52709043]
[1746676790646,50.16964049,151.04,151.0,220.0]
[1746676790842,31.64255006,151.04,151.0,238.52709043]
[1746676791530,31.64255006,151.04,151.0,220.0]
[1746676791831,31.64255006,151.04,151.0,238.52709043]
[1746676792225,31.64255006,151.04,151.01,18.52709043]
[1746676792439,25.02174794,151.03,151.01,18.52709043]
[1746676793275,25.02174794,151.03,151.0,238.52709043]
[1746676793446,25.02174794,151.03,151.0,220.0]
[1746676793757,43.54883837,151.02,151.0,220.0]
[1746676794060,25.02174794,151.02,151.0,220.0]
[1746676794257,31.64359985,151.02,151.0,220.0]
[1746676798567,25.02174794,151.01,151.0,220.0]
[1746676798951,25.02174794,151.01,151.0,231.58651458]
[1746676799741,25.02174794,151.01,151.0,220.0]
[1746676799978,25.02174794,151.01,151.0,231.58651458]
[1746676800181,31.64254074,151.04,151.0,220.0]
[1746676800551,31.64254074,151.04,151.01,11.58651458]
[1746676800769,31.64254074,151.04,151.0,220.0]
[1746676800975,25.02174794,151.04,151.01,11.58651458]
[1746676801273,25.02174794,151.04,151.0,220.0]
[1746676801478,25.02174794,151.04,151.01,11.58651458]
[1746676801674,25.02174794,151.04,151.0,220.0]
[1746676801850,25.02174794,151.04,151.01,11.58651458]
[1746676802352,25.02174794,151.04,151.0,220.0]
[1746676802553,25.02174794,151.04,151.0,226.62247479]
[1746676802757,25.02174794,151.04,151.03,11.58651458]
[1746676802962,1.6442,151.07,151.03,11.58651458]
[1746676803148,6.61900979,151.08,151.05,11.58651458]
[1746676803355,25.02174794,151.07,151.02,11.58651458]
[1746676803753,6.61821552,151.1,151.01,26.0]
[1746676803754,18.20530738,151.09,151.01,26.0]
[1746676804177,6.6187928,151.09,151.05,11.58651458]
[1746676804692,31.63995725,151.1,151.02,6.62163951]
[1746676804992,43.22647183,151.1,151.06,11.58651458]
[1746676805203,31.63995725,151.1,151.06,11.58651458]
[1746676805361,25.02174794,151.1,151.08,11.58651458]
[1746676805566,25.02174794,151.1,151.09,11.58651458]
[1746676806173,31.63996311,151.1,151.02,28.14061337]
[1746676806375,25.02174794,151.1,151.07,11.58651458]
[1746676806584,43.22642392,151.1,151.03,32.62120108]
[1746676806781,25.02174794,151.09,151.06,11.58651458]
[1746676806984,25.02174794,151.09,151.08,11.58651458]
[1746676807590,25.02174794,151.09,151.04,18.79181043]
[1746676807910,25.02174794,151.13,151.08,11.58651458]
[1746676808082,25.02174794,151.13,151.04,20.30811043]
[1746676808083,11.58651458,151.12,151.04,20.30811043]
[1746676808281,18.20439667,151.11,151.06,11.58651458]
[1746676808477,18.20439667,151.11,151.04,34.13666487]
[1746676809013,18.20390486,151.12,151.07,11.58651458]
[1746676809584,6.61739028,151.12,151.07,11.58651458]
[1746676809788,18.20390486,151.12,151.08,11.58651458]
[1746676810004,18.20390486,151.12,151.04,34.13666487]
[1746676810005,25.02174794,151.11,151.07,11.58651458]
[1746676810683,25.02174794,151.11,151.08,11.58651458]
[1746676811087,25.02174794,151.11,151.09,11.58651458]
[1746676812227,25.02174794,151.11,151.05,25.41213482]
[1746676812394,43.22597554,151.11,151.05,6.62032439]
[1746676812592,11.58651458,151.1,151.06,11.58651458]
[1746676812995,11.58651458,151.08,151.02,26.0]
[1746676813210,6.61681995,151.13,151.07,11.58651458]
[1746676813415,1.5429,151.15,151.06,18.64964886]
[1746676813790,1.5429,151.15,151.09,18.5102454]
[1746676814010,6.61643165,151.14,151.08,18.5102454]
[1746676814397,18.5102454,151.13,151.09,26.0]
[1746676814603,18.5102454,151.13,151.1,26.0]
[1746676814803,18.64964886,151.12,151.02,16.55409879]
[1746676815037,18.5102454,151.1,151.05,18.5102454]
[1746676815237,18.64964886,151.12,151.05,26.0]
[1746676815538,18.5102454,151.09,151.05,44.5102454]
[1746676815701,18.64964886,151.12,151.05,44.5102454]
[1746676815907,6.61769571,151.11,151.05,44.5102454]
[1746676816212,25.26699987,151.12,151.05,44.5102454]
[1746676816410,18.5102454,151.09,151.05,26.0]
[1746676816640,25.26699987,151.12,151.04,25.13096497]
[1746676816841,18.5102454,151.1,151.04,32.62071957]
[1746676817002,18.5102454,151.09,151.04,51.13096497]
[1746676817205,25.26699987,151.12,151.05,18.5102454]
[1746676817502,18.5102454,151.1,151.05,18.5102454]
[1746676817708,25.26699987,151.12,151.05,18.5102454]
[1746676817938,25.26699987,151.12,151.05,25.13041438]
[1746676818234,25.02174794,151.13,151.07,18.5102454]
[1746676818817,25.02174794,151.13,151.05,6.62016898]
[1746676819122,18.5102454,151.11,151.06,18.5102454]
[1746676819324,25.02174794,151.13,151.07,6.61944793]
[1746676819517,25.02174794,151.13,151.07,32.61944793]
[1746676819941,25.02174794,151.13,151.08,18.5102454]
[1746676820138,25.02174794,151.13,151.1,44.5102454]
[1746676820435,25.02174794,151.13,151.11,18.5102454]
[1746676820637,31.98,151.17,151.1,26.0]
[1746676820638,18.5102454,151.15,151.1,26.0]
[1746676820836,25.02174794,151.16,151.09,26.0]
[1746676821037,25.02174794,151.16,151.12,18.5102454]
[1746676821336,25.02174794,151.16,151.13,6.61681995]
[1746676822540,25.02174794,151.16,151.1,26.0]
[1746676822733,18.5102454,151.15,151.1,32.61781288]
[1746676823113,25.02174794,151.16,151.1,51.12805828]
[1746676823314,25.02174794,151.16,151.1,32.61781288]
[1746676823520,25.02174794,151.16,151.1,51.12805828]
[1746676823819,25.02174794,151.16,151.15,18.5102454]
[1746676824030,25.02174794,151.21,151.15,18.5102454]
[1746676824216,25.02174794,151.21,151.16,18.5102454]
[1746676824419,18.5102454,151.18,151.13,26.0]
[1746676824613,25.02174794,151.21,151.14,18.5102454]
[1746676825024,18.5102454,151.18,151.14,18.5102454]
[1746676825229,25.02174794,151.21,151.16,18.5102454]
[1746676825425,18.5102454,151.19,151.14,6.61638216]
[1746676825636,25.02174794,151.21,151.14,25.12662756]
[1746676826135,25.02174794,151.21,151.14,14.60938216]
[1746676826323,43.53199334,151.21,151.16,18.5102454]
[1746676826529,31.63520078,151.21,151.14,33.11962756]
[1746676826717,18.5102454,151.18,151.14,33.11962756]
[1746676826916,31.63520078,151.21,151.14,6.61638216]
[1746676827317,25.02174794,151.21,151.15,18.5102454]
[1746676827543,18.5102454,151.2,151.14,6.61638216]
[1746676827724,25.02174794,151.21,151.15,18.5102454]
[1746676827924,25.02174794,151.21,151.14,6.61638216]
[1746676828143,25.02174794,151.21,151.17,26.0]
[1746676828320,25.02174794,151.24,151.17,34.13]
[1746676828740,25.02174794,151.24,151.2,18.5102454]
[1746676828924,25.02174794,151.24,151.17,34.13]
[1746676829127,20.27404886,151.28,151.17,34.13]
[1746676829128,25.02174794,151.27,151.17,34.13]
[1746676829318,25.02174794,151.26,151.19,26.0]
[1746676829521,18.5102454,151.24,151.19,26.0]
[1746676829737,25.02174794,151.26,151.19,26.0]